Cogmind - Beta 11 @@@ ROGUE MODE // 2022.04.11 @ 23:34:50 Player: Momo Result: Destroyed by as-28744 with Assembled Focal Cannon Performance ------------- Evolutions (4) 2000 Regions Visited (19) 3800 Robots Destroyed (163) 815 Value Destroyed (5509) 5509 Prototype IDs (34) 680 Alien Tech Used (0) 0 Bonus (1359) 1359 TOTAL SCORE: 14163 Bonus ------- High Alert Combat Kills 96 Follower Combat Kills 429 Aligned with FarCom 300 Met Data Miner 300 Exposed GOLEM Chamber 500 Friendly Fire -266 Cogmind --------- Core Integrity 0/850 Matter 35/300 Energy 75/100 System Corruption 27% Temperature Cool (12) Movement Walking (510) Ox4 Location -6/Deep Caves Parts ------- > --- POWER (1) -------- Zionite Light DM Reactor > --- PROPULSION (6) --- Zionite Composite Leg I > --- UTILITY (5) ------ Improved Heat Sink Experimental Heat Sink Huge Storage Unit Makeshift Salvage Targeting Computer > --- WEAPON (3) ------- Zionite Laser-S Heavy Proton Missile Launcher > --- INVENTORY (25) --- Makeshift Power Source Zionite Light DM Reactor Zionite Composite Leg I Experimental Heat Sink Zionite Biocell (600) Zionite Biocell (600) Zionite Biocell (600) Compact Matter Pod (0) Makeshift Sensor Array Makeshift Terrain Scanner Transmission Jammer Zionite Weapon Casing Zionite Weapon Casing Zionite Light Carapace Zionite Light Carapace Zionite Heavy Carapace Zionite Laser-S Zionite Laser-S Peak State ------------ > --- POWER ------------ Zionite Light DM Reactor > --- PROPULSION ------- Makeshift Leg Makeshift Leg Makeshift Leg Zionite Composite Leg I Zionite Composite Leg I Zionite Glidesys I > --- UTILITY ---------- Huge Storage Unit Zionite Biocell Makeshift Salvage Targeting Computer Bomb Drone Bay > --- WEAPON ----------- Zionite Laser-S Zionite Laser-S Neutron Cannon > --- INVENTORY -------- Makeshift Power Source Light Fission Core Zionite Light DM Reactor Improved Heat Sink Improved Heat Sink Experimental Heat Sink Experimental Heat Sink Zionite Biocell Zionite Biocell Compact Matter Pod Makeshift Sensor Array Makeshift Terrain Scanner Transmission Jammer Zionite Weapon Casing Zionite Weapon Casing Zionite Weapon Casing Zionite Light Carapace Zionite Light Carapace Zionite Light Carapace Zionite Light Carapace Zionite Heavy Carapace Zionite Laser-S Zionite Laser-S Heavy Proton Missile Launcher [Rating: 96] Favorites ----------- Power Enhanced Fission Core Engine Ion Engine Power Core Enhanced Fission Core Reactor Zionite Light DM Reactor Propulsion Light Treads Treads Light Treads Leg Carbon-fiber Leg Wheel Wheel Hover Unit Zionite Glidesys I Flight Unit Nuclear Pulse Thruster Utility Huge Storage Unit Device Trap Scanner Storage Huge Storage Unit Processor Improved Signal Interpreter Protection Layered Medium Armor Plating Weapon Enhanced Coil Gun Energy Gun Zionite Laser-S Energy Cannon Advanced Beam Cannon Ballistic Gun Enhanced Coil Gun Ballistic Cannon Magnetic Acceleration Cannon Launcher Proton Missile Launcher Special Weapon Mining Laser Impact Weapon Heavy Mace Slashing Weapon Greatsword Special Melee Weapon Improved Datajack Build | -11 -10 -10 -9 -9 -9 -8 -8 -7 -7 -7 -7 -7 -7 -6 -6 -6 -6 -6 -6 ------- Run | Scr Mat Min Mat Min Exi Min Mat Fac Was Fac Low Low Dat Pro Fac Low Low Zio Dee Slots Evolved 8 | . . . 2 . . . 2 2 . . . . . . 2 . . . . Power . | . . . . . . . . . . . . . . . . . . . . Propulsion 4 | . . . 2 . . . 2 . . . . . . . . . . . . Utility 3 | . . . . . . . . 2 . . . . . . 1 . . . . Weapon 1 | . . . . . . . . . . . . . . . 1 . . . . Parts Attached 169 | 6 6 6 2 7 4 . 17 3 3 40 2 2 . 2 4 . 8 31 26 Power 13 | 1 . . 1 1 . . 1 1 . 5 . . . . . . . 1 2 Engine 7 | 1 . . 1 1 . . 1 1 . 2 . . . . . . . . . Core 4 | . . . . . . . . . . 2 . . . . . . . 1 1 Reactor 2 | . . . . . . . . . . 1 . . . . . . . . 1 Propulsion 48 | 2 . . . 2 . . 11 . . 7 . 1 . 1 . . 4 15 5 Treads 7 | 2 . . . . . . . . . 3 . 1 . 1 . . . . . Leg 28 | . . . . 2 . . 2 . . 4 . . . . . . 1 15 4 Wheel 4 | . . . . . . . 4 . . . . . . . . . . . . Hover 3 | . . . . . . . 2 . . . . . . . . . . . 1 Flight 6 | . . . . . . . 3 . . . . . . . . . 3 . . Utility 54 | 1 1 3 1 2 2 . . 2 1 10 . 1 . 1 3 . 1 11 14 Device 23 | . 1 2 . 1 . . . 2 1 6 . 1 . . 1 . . 2 6 Storage 5 | 1 . 1 . . 1 . . . . 1 . . . . . . . . 1 Processor 8 | . . . . . . . . . . 3 . . . 1 . . . 4 . Hackware . | . . . . . . . . . . . . . . . . . . . . Protection 18 | . . . 1 1 1 . . . . . . . . . 2 . 1 5 7 Artifact . | . . . . . . . . . . . . . . . . . . . . Weapon 54 | 2 5 3 . 2 2 . 5 . 2 18 2 . . . 1 . 3 4 5 Energy Gun 7 | 1 2 . . 1 . . . . . 1 . . . . . . . . 2 Energy Cannon 16 | . 2 . . . 2 . 2 . 2 7 . . . . . . . . 1 Ballistic Gun 16 | 1 . 2 . . . . 1 . . 6 1 . . . 1 . 1 3 . Ballistic Cannon 2 | . . . . . . . . . . . . . . . . . 1 1 . Launcher 7 | . 1 1 . . . . . . . 1 1 . . . . . 1 . 2 Special Weapon 1 | . . . . 1 . . . . . . . . . . . . . . . Impact Weapon 1 | . . . . . . . 1 . . . . . . . . . . . . Slashing Weapon 2 | . . . . . . . 1 . . 1 . . . . . . . . . Piercing Weapon . | . . . . . . . . . . . . . . . . . . . . Special Melee Weapon 2 | . . . . . . . . . . 2 . . . . . . . . . Unidentified Prototypes 23 | . 2 1 . . 2 . . . . 9 . . . . . . . . 9 Corrupted Parts 3 | . . . . . . . . . . . . . . . . . 2 . 1 System Corruption 12 | . . . . . . . . . . . . . . . . . 5 . 7 Parts Lost 52 | . . . . 4 . . 6 . 1 6 2 1 . . . 1 3 13 15 Power 4 | . . . . . . . 1 . . 1 . . . . . . . 1 1 Propulsion 25 | . . . . 2 . . 5 . 1 1 1 . . . . 1 2 5 7 Utility 15 | . . . . 1 . . . . . 3 1 1 . . . . 1 3 5 Weapon 8 | . . . . 1 . . . . . 1 . . . . . . . 4 2 Highest Loss Streak 10 | . . . . 4 . . 5 . 1 4 2 1 . . . 1 3 2 10 To Critical Strikes 1 | . . . . . . . . . . 1 . . . . . . . . . Average Slot Usage (%) 77 | . 96 99 77 74 68 55 65 70 49 70 76 73 69 81 83 80 73 79 89 Engine 3 | . 14 14 11 11 11 11 6 5 2 2 . . . . . . . . . Core 4 | . . . . . . . . . . 4 7 7 7 7 6 6 6 5 1 Treads 11 | . 28 28 22 5 . . . . . 9 23 22 23 28 26 20 6 4 . Leg 9 | . . . . 15 22 22 18 . . 11 3 . . . . . 5 14 32 Flight 4 | . . . . . . . 1 23 22 2 . . . . . . 6 14 . Device 5 | . 10 13 . . 3 . . 6 16 12 3 6 7 7 8 6 . 1 5 Storage 7 | . 14 13 11 11 11 11 9 7 7 7 7 7 7 7 6 6 6 6 7 Processor 6 | . . . . . . . . . . 7 15 13 7 13 13 13 6 6 6 Protection 6 | . . . 10 10 7 11 9 4 . . . . . . 2 6 12 12 7 Energy Gun 1 | . 10 . . 7 3 . . . . . . . . . . . . . 7 Energy Cannon 1 | . 7 9 . . 5 . . . . 1 . . . . . . . . 5 Ballistic Gun 9 | . 2 4 11 5 . . 1 4 . 7 13 15 15 15 18 20 12 10 . Launcher 2 | . 7 14 11 2 . . . . . . 1 . . . . . 6 . 1 Naked Turns . | . . . . . . . . . . . . . . . . . . . . Heaviest Build 133 | 14 19 20 24 22 44 37 42 39 27 108 107 108 108 108 118 118 133 133 127 Greatest Support 190 | 40 40 40 40 40 20 20 36 36 22 170 170 170 170 190 190 115 115 120 120 Greatest Overweight (x) 22 | 2 . . . 5 2 1 4 1 2 11 . . . . . 1 22 22 1 Average Overweight (x) 1 | . . . . . . 1 1 . . . . . . . . 1 7 3 . Largest Inventory Capacity 25 | 8 8 8 8 8 15 15 15 15 15 25 25 25 25 25 25 25 25 25 25 Average Capacity 20 | 6 8 7 8 8 8 15 15 15 15 19 25 25 25 25 25 25 25 25 25 Most Carried 25 | . 8 8 8 8 10 10 15 15 15 24 24 25 25 25 25 25 25 25 25 Average Carried 18 | . 6 7 7 7 8 10 12 14 13 16 24 24 25 24 24 25 23 21 22 Final Capacity 25 | 8 8 8 8 8 15 15 15 15 15 25 25 25 25 25 25 25 25 25 25 Final Carried 25 | . 8 8 8 8 10 10 15 14 15 24 24 25 25 25 25 25 21 25 19 Class Distribution -------------------- 52% | Scavenger-Mutant 27% | Mutant 7% | Scavenger-Tank 7% | Scavenger-Gunner 3% | Tank Dominant Class ---------------- Mutant | -10/Materials Mutant | -10/Mines Mutant | -9/Materials Scavenger-Mutant | -9/Mines Mutant | -9/Exiles Mutant | -8/Mines Mutant | -8/Materials Scavenger-Mutant | -7/Factory Mutant | -7/Waste Scavenger-Mutant | -7/Factory Scavenger-Mutant | -7/Lower Caves Scavenger-Mutant | -7/Lower Caves Scavenger-Mutant | -7/Data Miner Scavenger-Mutant | -6/Proximity Caves Scavenger-Mutant | -6/Factory Scavenger-Gunner | -6/Lower Caves Scavenger-Mutant | -6/Lower Caves Scavenger-Mutant | -6/Zion Scavenger-Mutant | -6/Deep Caves Resources | -11 -10 -10 -9 -9 -9 -8 -8 -7 -7 -7 -7 -7 -7 -6 -6 -6 -6 -6 -6 ----------- Run | Scr Mat Min Mat Min Exi Min Mat Fac Was Fac Low Low Dat Pro Fac Low Low Zio Dee Matter Collected 4726 | 193 109 233 50 230 . . 184 . . 725 245 309 . 141 62 147 144 1698 256 Remotely 810 | . . . . . . . . . . . . . . . . . . 810 . Salvage Created 6898 | . 7 325 66 430 . . 619 . 244 1469 263 687 . 170 18 313 302 1677 308 Parts 413 | . 8 25 7 24 . . 44 . 3 62 14 36 . 9 2 17 18 128 16 Haulers Intercepted 1 | . . . . . . . . . . 1 . . . . . . . . . Recyclers Shooed 2 | . . 2 . . . . . . . . . . . . . . . . . Parts Field Recycled . | . . . . . . . . . . . . . . . . . . . . Retrieved Matter . | . . . . . . . . . . . . . . . . . . . . Parts Self-Destructed 105 | . . . . . . . . . . . 16 32 . 20 . 24 7 6 . Prevented 10 | . . . . . . . . . . . . . . . . . 10 . . Kills | -11 -10 -10 -9 -9 -9 -8 -8 -7 -7 -7 -7 -7 -7 -6 -6 -6 -6 -6 -6 ------- Run | Scr Mat Min Mat Min Exi Min Mat Fac Was Fac Low Low Dat Pro Fac Low Low Zio Dee Combat Hostiles Destroyed 117 | . 4 17 2 9 . . 13 . 1 23 5 13 . 3 . 5 6 10 6 Melee 7 | . . . . . . . 5 . . 2 . . . . . . . . . Guns 57 | . . . . 6 . . 2 . . 9 5 13 . 3 . 5 4 10 . Cannons 8 | . . 3 . . . . . . . 1 . . . . . . . . 4 AOE 38 | . 4 14 2 3 . . 5 . . 7 . . . . . . 1 . 2 Classes Destroyed 25 | . 2 2 1 1 . . 5 . 1 6 . 2 . . . 1 . 3 1 Worker 6 | . . 1 . . . . . . . 4 . . . . 1 . . . . Builder 8 | . . . 1 . . . 3 . . 4 . . . . . . . . . Tunneler 2 | . . . . . . . 1 . . 1 . . . . . . . . . Hauler 1 | . . . . . . . . . . 1 . . . . . . . . . Recycler 3 | . . . . . . . 1 . . 2 . . . . . . . . . Mechanic 1 | . . . . . . . . . . 1 . . . . . . . . . Operator 1 | . 1 . . . . . . . . . . . . . . . . . . Watcher 3 | . . . . . . . 2 . . 1 . . . . . . . . . Swarmer 22 | . 4 8 2 1 . . 3 . . . 1 1 . . . . 2 . . Grunt 43 | . . 9 . 7 . . 5 . . 8 2 6 . 2 . 1 3 . . Brawler 2 | . . . . . . . . . . . . 1 . 1 . . . . . Duelist 4 | . . . . 2 . . . . . . . 1 . . . 1 . . . Protector 2 | . . . . . . . . . . 1 . 1 . . . . . . . Sentry 8 | . . . . . . . 3 . . 2 1 2 . . . . . . . Specialist 1 | . . . . . . . . . . 1 . . . . . . . . . Hunter 10 | . . . . . . . 2 . . 6 . . . . . 2 . . . Programmer 5 | . . . . . . . . . . 4 1 . . . . . . . . Heavy 1 | . . . . . . . . . . 1 . . . . . . . . . Behemoth 1 | . . . . . . . . . . . . . . . . 1 . . . Compactor 1 | . . . . . . . . . 1 . . . . . . . . . . Zionite 42 | . . . . . . . . . . . . . . . . . . 42 . Z-Light 6 | . . . . . . . . . . . . . . . . . . . 6 Tinkerer 1 | . . . . . . . . . . . . . . . . . . 1 . Master Thief 2 | . . . . . . . . . . . . 1 . . . . 1 . . Thug 1 | . . . . . . . . . . . . . . . . . . 1 . Butcher 2 | . . . . . . . . . . . . . . . . . . 2 . Mutant 6 | . . . . . . . . . . . . . . . . . . 6 . Best Kill Streak 14 | . 4 4 3 3 . . 12 . 1 14 2 4 . 3 1 2 3 8 6 Combat Bots Only 9 | . 3 4 2 3 . . 8 . 1 9 2 4 . 3 . 2 3 2 6 Max Kills in Single Turn 5 | . 3 3 1 1 . . 5 . 1 4 1 3 . 1 1 1 1 2 2 Gunslinging . | . . . . . . . . . . . . . . . . . . . . Exploded 4 | . 3 3 1 1 . . 4 . . 2 . . . . . . 1 . 2 Melee 1 | . . . . . . . 1 . . 1 . . . . . . . . . Uniques/NPCs Destroyed 1 | . . . . . . . . . . . . . . . . . . 1 . Imprinter (-6/Zion) Combat | -11 -10 -10 -9 -9 -9 -8 -8 -7 -7 -7 -7 -7 -7 -6 -6 -6 -6 -6 -6 -------- Run | Scr Mat Min Mat Min Exi Min Mat Fac Was Fac Low Low Dat Pro Fac Low Low Zio Dee Damage Taken 10936 | . 28 400 82 658 97 . 735 . 131 2129 425 506 . 42 30 309 462 2381 2521 Core 1811 | . 20 114 . 72 . . 134 . 131 331 53 69 . . 2 19 48 192 626 Absorbed by Shields 188 | . . . . . . . . . . . . 152 . 4 32 . . . . Reduced by Siege Mode 82 | . . . . . . . . . . 46 . 10 . 11 . 15 . . . Redirected to Shielding 184 | . . . . . . . . . . . . . . . . . . . 184 Core Remaining (%) 63 | 100 . 46 . . . 82 75 . . . . . . 16 . . . . . Volleys Fired 388 | . 3 26 6 48 . . 4 . 2 59 14 31 . 10 3 11 19 113 39 Largest 3 | . 1 1 1 2 . . 1 . 1 2 2 2 . 2 3 3 2 3 3 Hottest 250 | . 30 68 36 140 . . 100 . 100 250 60 60 . 60 90 90 60 90 210 Shots Fired 710 | . 3 26 6 51 . . 4 . 2 87 21 61 . 20 9 33 30 303 54 Gun 580 | . . . . 38 . . 2 . . 71 20 61 . 20 9 33 19 290 17 Cannon 77 | . . 13 . . . . 2 . 2 16 . . . . . . . 13 31 Launcher 50 | . 3 13 6 10 . . . . . . 1 . . . . . 11 . 6 Special 3 | . . . . 3 . . . . . . . . . . . . . . . Kinetic 582 | . . . . 35 . . 2 . . 71 20 61 . 20 9 33 19 303 9 Thermal 75 | . . 13 . 6 . . 2 . 2 13 . . . . . . . . 39 Explosive 15 | . 3 12 . . . . . . . . . . . . . . . . . Electromagnetic 38 | . . 1 6 10 . . . . . 3 1 . . . . . 11 . 6 Robot Hit Streak 24 | . 1 7 4 10 . . 3 . 1 19 24 7 . 13 16 9 11 7 6 Robot Miss Streak 8 | . 1 2 1 2 . . . . 1 4 8 3 . . 1 2 2 3 3 Penetration Max 1 | . . . . . . . . . . 1 . 1 . 1 1 . . 1 . Secondary Targets 14 | . . . . . . . . . . . . 1 . . . 1 1 11 . Max Gunslinging Chain 1 | . . . . . . . . . . . . 1 . . . 1 1 1 . Shots Hit Robots 434 | . 1 14 3 37 . . 15 . 1 58 9 38 . 10 5 24 18 169 32 Core Hits 257 | . 5 23 5 15 . . 19 . . 51 6 23 . 4 1 12 11 68 14 Critical Kills 14 | . . . . . . . 1 . 1 4 . 2 . 1 . 2 . 3 . Critical Parts Destroyed 12 | . . . . . . . . . . 1 . 1 . 1 1 2 . 6 . Critical Strikes 31 | . . . . . . . 3 . 1 7 . 3 . 2 1 4 . 10 . Meltdown 5 | . . . . . . . 1 . 1 3 . . . . . . . . . Destroy 23 | . . . . . . . . . . 4 . 3 . 2 1 4 . 9 . Blast 1 | . . . . . . . . . . . . . . . . . . 1 . Sever 2 | . . . . . . . 2 . . . . . . . . . . . . Melee Attacks 25 | . . . . . . . 21 . . 4 . . . . . . . . . Impact 1 | . . . . . . . 1 . . . . . . . . . . . . Slashing 22 | . . . . . . . 20 . . 2 . . . . . . . . . Piercing . | . . . . . . . . . . . . . . . . . . . . Sneak Attacks 4 | . . . . . . . 2 . . 2 . . . . . . . . . Combat Hostiles . | . . . . . . . . . . . . . . . . . . . . Follow-up Attacks . | . . . . . . . . . . . . . . . . . . . . Damage Inflicted 19123 | . 349 1314 180 846 . . 1554 . 108 4436 354 1307 . 371 238 695 974 5031 1366 Guns 10252 | . . . . 536 . . 33 . . 1337 344 1307 . 371 238 695 291 4859 241 Cannons 2275 | . . 230 . . . . 194 . 108 833 . . . . . . . 172 738 Explosions 5739 | . 349 1084 180 310 . . 592 . . 2144 10 . . . . . 683 . 387 Melee 836 | . . . . . . . 731 . . 105 . . . . . . . . . Ramming 21 | . . . . . . . 4 . . 17 . . . . . . . . . Kinetic 10342 | . . . . 514 . . 33 . . 1337 344 1307 . 371 238 695 291 5031 181 Thermal 4948 | . . 230 . 22 . . 786 . 108 2949 . . . . . . 16 . 837 Explosive 1413 | . 349 1064 . . . . . . . . . . . . . . . . . Electromagnetic 1563 | . . 20 180 310 . . . . . 28 10 . . . . . 667 . 348 Impact 55 | . . . . . . . 55 . . . . . . . . . . . . Slashing 781 | . . . . . . . 676 . . 105 . . . . . . . . . Piercing . | . . . . . . . . . . . . . . . . . . . . Highest Corruption 27 | . . . . 1 1 1 . . . 10 10 14 14 14 . . 5 20 27 Average Corruption 7 | . . . . 1 1 1 . . . 6 10 10 14 14 . . 3 7 24 Corruption Purged . | . . . . . . . . . . . . . . . . . . . . Corruption Blocked . | . . . . . . . . . . . . . . . . . . . . Effects 315 | . . . . 1 3 1 . . . 48 20 30 5 24 . . 40 100 43 Message Errors 78 | . . . . . 1 . . . . 13 2 9 2 8 . . 10 20 13 Matter Fused 78 | . . . . . 1 . . . . 9 9 3 1 6 . . 11 25 13 Heat Flow Errors 35 | . . . . . . 1 . . . 3 2 2 . 6 . . 3 14 4 Energy Discharges 34 | . . . . 1 . . . . . 3 1 7 . 1 . . 6 10 5 Parts Rejected 6 | . . . . . . . . . . 2 . . . . . . . 3 1 Data Loss (minor) 34 | . . . . . . . . . . 8 2 1 2 2 . . 6 10 3 Data Loss (major) 13 | . . . . . 1 . . . . 3 1 2 . 1 . . 2 3 . Misfires 12 | . . . . . . . . . . 1 2 2 . . . . 2 3 2 Alerts 9 | . . . . . . . . . . 2 1 1 . . . . . 5 . Weapon Failures 16 | . . . . . . . . . . 4 . 3 . . . . . 7 2 Overload Shots . | . . . . . . . . . . . . . . . . . . . . Overflow Damage 437 | . 36 69 . 27 . . 62 . . 199 . . . . . . . 9 35 Projectiles 140 | . . . . . . . . . . 108 . . . . . . . 9 23 Explosions 235 | . 36 69 . 27 . . . . . 91 . . . . . . . . 12 Melee 62 | . . . . . . . 62 . . . . . . . . . . . . Knockbacks 4 | . . . . . . . . . . . . . . . . . . 3 1 Impact . | . . . . . . . . . . . . . . . . . . . . Kinetic 4 | . . . . . . . . . . . . . . . . . . 3 1 Secondary . | . . . . . . . . . . . . . . . . . . . . Self-Inflicted Damage 371 | . . 18 10 19 . . 2 . 41 181 10 . . . . . 90 . . Shots 13 | . . 1 1 1 . . . . 1 4 1 . . . . . 4 . . Rammed 1 | . . . . . . . 1 . . . . . . . . . . . . Targets Rammed 2 | . . . . . . . 1 . . 1 . . . . . . . . . Kicked 1 | . . . . . . . . . . 1 . . . . . . . . . Crushed . | . . . . . . . . . . . . . . . . . . . . Highest Temperature 536 | . . 287 9 55 . 260 33 . 14 392 135 247 . 261 9 93 239 400 536 Average Temperature 91 | . . 100 9 15 . 132 13 . 8 120 69 65 . 110 3 33 64 96 127 Received Heat Transfer 2072 | . . 156 18 135 . . 225 . . 369 30 151 . . 10 75 135 270 498 Effects 17 | . . . . . . . . . . 1 . . . . . . . 9 7 Shutdowns 2 | . . . . . . . . . . 1 . . . . . . . 1 . Energy Bleed 4 | . . . . . . . . . . . . . . . . . . 3 1 Interference 4 | . . . . . . . . . . . . . . . . . . 4 . Matter Decay 2 | . . . . . . . . . . . . . . . . . . 1 1 Damage (minor) 1 | . . . . . . . . . . . . . . . . . . . 1 Damage (major) 4 | . . . . . . . . . . . . . . . . . . . 4 Siege Activations 18 | . . . . . . . . . . 7 3 2 . 3 . 3 . . . Total Turns 175 | . . . . . . . . . . 66 22 17 . 34 . 36 . . . Longest Duration 25 | . . . . . . . . . . 25 14 9 . 16 . 22 . . . Robots Corrupted 1 | . . . . . . . . . . . . . . . . . 1 . . Combat Hostiles 1 | . . . . . . . . . . . . . . . . . 1 . . Parts Fried 8 | . . . . . . . 3 . . . . . . . . . 2 . 3 Impact Corruptions 1 | . . . . . . . 1 . . . . . . . . . . . . Robots Melted 8 | . . . . . . . 1 . 1 6 . . . . . . . . . Combat Hostiles 6 | . . . . . . . 1 . 1 4 . . . . . . . . . Parts Melted 25 | . . . . 1 . . 3 . 2 17 . . . . . . . 2 . Heat Transferred 7085 | . . 407 . 50 . . 880 . 80 5198 . . . . . . 50 . 420 Parts Sabotaged . | . . . . . . . . . . . . . . . . . . . . Parts Stolen 5 | . . . . . . . . . . . . 1 . . . . 4 . . Parts Stripped . | . . . . . . . . . . . . . . . . . . . . Power Chain Reactions 4 | . . . . 2 . . . . . . . . . . . . 1 . 1 Missiles Intercepted . | . . . . . . . . . . . . . . . . . . . . Alert | -11 -10 -10 -9 -9 -9 -8 -8 -7 -7 -7 -7 -7 -7 -6 -6 -6 -6 -6 -6 ------- Run | Scr Mat Min Mat Min Exi Min Mat Fac Was Fac Low Low Dat Pro Fac Low Low Zio Dee Peak Influence 497 | . 231 469 222 337 . . 463 119 74 497 . . . . 107 . . . . Initial 124 | . . 12 124 86 . . . 119 41 44 . . . . 17 . . . . Average 209 | . 104 282 167 195 . . 141 119 54 279 . . . . 70 . . . . Maximum Alert Level 2 | . 1 2 1 1 . . 2 . . 2 . . . . . . . . . Low Security (%) 47 | 100 69 28 59 53 . 100 68 100 100 24 . . . . 100 . . . . Level 1 44 | . 30 54 40 46 . . 23 . . 63 . . . . . . . . . Level 2 7 | . . 16 . . . . 7 . . 11 . . . . . . . . . Level 3 . | . . . . . . . . . . . . . . . . . . . . Level 4 . | . . . . . . . . . . . . . . . . . . . . Level 5 . | . . . . . . . . . . . . . . . . . . . . High Security . | . . . . . . . . . . . . . . . . . . . . Max Security . | . . . . . . . . . . . . . . . . . . . . Squads Dispatched 14 | . . 1 1 . . . 3 . . 8 . 1 . . . . . . . Investigation 6 | . . 1 . . . . 3 . . 2 . . . . . . . . . Extermination 3 | . . . . . . . . . . 3 . . . . . . . . . Reinforcement 4 | . . . 1 . . . . . . 3 . . . . . . . . . Assault 1 | . . . . . . . . . . . . 1 . . . . . . . Garrison . | . . . . . . . . . . . . . . . . . . . . Intercept . | . . . . . . . . . . . . . . . . . . . . Searches Triggered . | . . . . . . . . . . . . . . . . . . . . Construction Impeded 1 | . . . . . . . . . . 1 . . . . . . . . . Haulers Reinforced . | . . . . . . . . . . . . . . . . . . . . Active Scanning Responses . | . . . . . . . . . . . . . . . . . . . . Cargo Convoy Interrupts 1 | . . . . . . . . . . 1 . . . . . . . . . Stealth | -11 -10 -10 -9 -9 -9 -8 -8 -7 -7 -7 -7 -7 -7 -6 -6 -6 -6 -6 -6 --------- Run | Scr Mat Min Mat Min Exi Min Mat Fac Was Fac Low Low Dat Pro Fac Low Low Zio Dee Distress Signals 8 | . 2 . . . . . 4 . . 2 . . . . . . . . . Communications Jammed . | . . . . . . . . . . . . . . . . . . . . Distress Signals . | . . . . . . . . . . . . . . . . . . . . Times Spotted 224 | . 10 16 7 14 1 . 20 . 6 36 4 26 . 4 1 7 10 54 8 Peak Tracking Total 12 | . 6 3 4 3 1 . 9 . 6 10 2 12 . 3 1 4 5 5 6 Tactical Retreats 18 | . . . . 2 . . 2 . . 3 1 4 . . . . . 6 . Traps | -11 -10 -10 -9 -9 -9 -8 -8 -7 -7 -7 -7 -7 -7 -6 -6 -6 -6 -6 -6 ------- Run | Scr Mat Min Mat Min Exi Min Mat Fac Was Fac Low Low Dat Pro Fac Low Low Zio Dee Traps Triggered 7 | . . . 2 . . . 2 1 . 2 . . . . . . . . . Indirectly 2 | . . . 2 . . . . . . . . . . . . . . . . Trap Hack Attempts 57 | . . . . . . . . . . 57 . . . . . . . . . Triggered . | . . . . . . . . . . . . . . . . . . . . Disarmed 1 | . . . . . . . . . . 1 . . . . . . . . . Reprogrammed 4 | . . . . . . . . . . 4 . . . . . . . . . Reused 1 | . . . . . . . . . . 1 . . . . . . . . . Traps Extracted 4 | . . . . 3 . . . . . 1 . . . . . . . . . Installed 2 | . . . . . . . . . . 2 . . . . . . . . . Triggered 3 | . . . . . . . . . . 1 1 . . . . . 1 . . Most Traps Carried 3 | . . . . 3 3 3 3 3 3 3 . . . . . . . . . Machines | -11 -10 -10 -9 -9 -9 -8 -8 -7 -7 -7 -7 -7 -7 -6 -6 -6 -6 -6 -6 ---------- Run | Scr Mat Min Mat Min Exi Min Mat Fac Was Fac Low Low Dat Pro Fac Low Low Zio Dee Machines Disabled 18 | . 1 . . . . . 1 . . 14 . . . . 1 . . 1 . Max in Single Turn 4 | . 1 . . . . . 1 . . 4 . . . . 1 . . 1 . Machines Sabotaged . | . . . . . . . . . . . . . . . . . . . . Garrisons Compromised . | . . . . . . . . . . . . . . . . . . . . Overloaded Fab Kills . | . . . . . . . . . . . . . . . . . . . . Hacking | -11 -10 -10 -9 -9 -9 -8 -8 -7 -7 -7 -7 -7 -7 -6 -6 -6 -6 -6 -6 --------- Run | Scr Mat Min Mat Min Exi Min Mat Fac Was Fac Low Low Dat Pro Fac Low Low Zio Dee Machines Accessed 18 | . 1 2 . . . . 2 . . 8 . . 4 . . . 1 . . Terminals 5 | . 1 . . . . . 2 . . 2 . . . . . . . . . Fabricators 2 | . . . . . . . . . . 2 . . . . . . . . . Repair Stations 3 | . . . . . . . . . . 3 . . . . . . . . . Recycling Units . | . . . . . . . . . . . . . . . . . . . . Scanalyzers . | . . . . . . . . . . . . . . . . . . . . Garrison Access 1 | . . . . . . . . . . 1 . . . . . . . . . Total Hacks 63 | . 4 2 . . . . 5 . . 21 . . 30 . . . 1 . . Successful 41 | . 3 2 . . . . 2 . . 3 . . 30 . . . 1 . . Failed 22 | . 1 . . . . . 3 . . 18 . . . . . . . . . Catastrophic 3 | . . . . . . . 1 . . 2 . . . . . . . . . Database Lockouts . | . . . . . . . . . . . . . . . . . . . . Manual 17 | . 1 . . . 1 . . . . 10 . . . . . . . 5 . Terminals 14 | . 4 . . . . . 5 . . 5 . . . . . . . . . Fabricators 8 | . . . . . . . . . . 8 . . . . . . . . . Repair Stations 6 | . . . . . . . . . . 6 . . . . . . . . . Recycling Units . | . . . . . . . . . . . . . . . . . . . . Scanalyzers . | . . . . . . . . . . . . . . . . . . . . Garrison Access 2 | . . . . . . . . . . 2 . . . . . . . . . Terminal Hacks 38 | . 3 2 . . . . 2 . . . . . 30 . . . 1 . . Record 11 | . . . . . . . . . . . . . 11 . . . . . . Part Schematic 10 | . . . . . . . . . . . . . 10 . . . . . . Robot Schematic 6 | . . . . . . . . . . . . . 6 . . . . . . Prototype ID Bank 4 | . 1 . . . . . . . . . . . 3 . . . . . . Open Door 3 | . . 2 . . . . . . . . . . . . . . 1 . . Branch Access Points 1 | . 1 . . . . . . . . . . . . . . . . . . Emergency Access Points 1 | . . . . . . . 1 . . . . . . . . . . . . Locate Traps 1 | . 1 . . . . . . . . . . . . . . . . . . Zone Layout 1 | . . . . . . . 1 . . . . . . . . . . . . Fabricator Hacks . | . . . . . . . . . . . . . . . . . . . . Repair Station Hacks 1 | . . . . . . . . . . 1 . . . . . . . . . Refit 1 | . . . . . . . . . . 1 . . . . . . . . . Recycling Unit Hacks . | . . . . . . . . . . . . . . . . . . . . Scanalyzer . | . . . . . . . . . . . . . . . . . . . . Garrison Access Hacks . | . . . . . . . . . . . . . . . . . . . . Unauthorized Hacks 2 | . . . . . . . . . . 2 . . . . . . . . . Terminals . | . . . . . . . . . . . . . . . . . . . . Fabricators 2 | . . . . . . . . . . 2 . . . . . . . . . Fabnet 2 | . . . . . . . . . . 2 . . . . . . . . . Repair Stations . | . . . . . . . . . . . . . . . . . . . . Recycling Units . | . . . . . . . . . . . . . . . . . . . . Scanalyzers . | . . . . . . . . . . . . . . . . . . . . Garrison Access . | . . . . . . . . . . . . . . . . . . . . Data Cores Recovered 1 | . 1 . . . . . . . . . . . . . . . . . . Used . | . . . . . . . . . . . . . . . . . . . . Hacking Detections 10 | . . . . . . . 2 . . 8 . . . . . . . . . Full Trace Events 2 | . . . . . . . 1 . . 1 . . . . . . . . . Feedback Events 1 | . . . . . . . . . . 1 . . . . . . . . . Corruption 1 | . . . . . . . . . . 1 . . . . . . . . . Feedback Blocked . | . . . . . . . . . . . . . . . . . . . . Robot Schematics Acquired 9 | . . . . . . . . . . . . . 6 . . . . 3 . Robots Built . | . . . . . . . . . . . . . . . . . . . . Authchips . | . . . . . . . . . . . . . . . . . . . . Time . | . . . . . . . . . . . . . . . . . . . . Total Robot Build Rating . | . . . . . . . . . . . . . . . . . . . . Part Schematics Acquired 24 | . . . . . . . . . . . . . 10 . . . . 14 . Parts Built . | . . . . . . . . . . . . . . . . . . . . Authchips . | . . . . . . . . . . . . . . . . . . . . Time . | . . . . . . . . . . . . . . . . . . . . Total Part Build Rating . | . . . . . . . . . . . . . . . . . . . . Parts Repaired . | . . . . . . . . . . . . . . . . . . . . Time . | . . . . . . . . . . . . . . . . . . . . Parts Recycled . | . . . . . . . . . . . . . . . . . . . . Recycled Matter . | . . . . . . . . . . . . . . . . . . . . Retrieved Matter . | . . . . . . . . . . . . . . . . . . . . Retrieved Components . | . . . . . . . . . . . . . . . . . . . . Parts Scanalyzed . | . . . . . . . . . . . . . . . . . . . . Part Schematics Acquired . | . . . . . . . . . . . . . . . . . . . . Parts Damaged . | . . . . . . . . . . . . . . . . . . . . Bothacking | -11 -10 -10 -9 -9 -9 -8 -8 -7 -7 -7 -7 -7 -7 -6 -6 -6 -6 -6 -6 ------------ Run | Scr Mat Min Mat Min Exi Min Mat Fac Was Fac Low Low Dat Pro Fac Low Low Zio Dee Used RIF Installer . | . . . . . . . . . . . . . . . . . . . . Robots Hacked 5 | . . . . . . . . . . 1 . . . 2 . . 2 . . Non-combat 1 | . . . . . . . . . . 1 . . . . . . . . . Combat 4 | . . . . . . . . . . . . . . 2 . . 2 . . Robot Hacks Applied 2 | . . . . . . . . . . 2 . . . . . . . . . no_distress 1 | . . . . . . . . . . 1 . . . . . . . . . find_recycling 1 | . . . . . . . . . . 1 . . . . . . . . . Relay Couplers Released . | . . . . . . . . . . . . . . . . . . . . Fabnet Peak Effective % 3 | . . . . . . . . . . . . . . 3 3 3 3 3 3 Autooverrided 4 | . . . . . . . . . . . . . . 2 . . 2 . . Robots Rewired 1 | . . . . . . . . . . . . 1 . . . . . . . Allies Hacked . | . . . . . . . . . . . . . . . . . . . . Hacks Repelled . | . . . . . . . . . . . . . . . . . . . . Allies | -11 -10 -10 -9 -9 -9 -8 -8 -7 -7 -7 -7 -7 -7 -6 -6 -6 -6 -6 -6 -------- Run | Scr Mat Min Mat Min Exi Min Mat Fac Was Fac Low Low Dat Pro Fac Low Low Zio Dee Total Allies 12 | . . 3 . 3 . . . . . . . 1 . 3 . . 2 . . Largest Group 3 | . . 3 3 3 2 . . . . . . 1 . 2 1 1 1 . . Highest-Rated Group 137 | . . 40 40 76 45 . . . . . . 32 . 137 96 96 29 . . Highest-Rated Ally 96 | . . 16 16 31 31 . . . . . . 32 . 96 96 96 29 . . Total Orders . | . . . . . . . . . . . . . . . . . . . . Ally Attacks 73 | . . . 7 8 . . . . . . . 5 . 21 3 12 3 . 14 Total Damage 1595 | . . . 61 101 . . . . . . . 251 . 655 139 329 59 . . Kills 15 | . . . 1 4 . . . . . . . 1 . 5 2 2 . . . Allies Corrupted 1 | . . . . . . . . . . . . 1 . . . . . . . Allies Melted 1 | . . . . . . . . . . . . . . . . . 1 . . Intel | -11 -10 -10 -9 -9 -9 -8 -8 -7 -7 -7 -7 -7 -7 -6 -6 -6 -6 -6 -6 ------- Run | Scr Mat Min Mat Min Exi Min Mat Fac Was Fac Low Low Dat Pro Fac Low Low Zio Dee Robot Analysis Total . | . . . . . . . . . . . . . . . . . . . . Derelict Logs Recovered 9 | . . 3 . 1 . . . . . . 1 . . . . 1 2 1 . Drone Launches 16 | . . . . . . . . . . . . . . . . . . . 16 Drone Recoveries . | . . . . . . . . . . . . . . . . . . . . Exploration | -11 -10 -10 -9 -9 -9 -8 -8 -7 -7 -7 -7 -7 -7 -6 -6 -6 -6 -6 -6 ------------- Run | Scr Mat Min Mat Min Exi Min Mat Fac Was Fac Low Low Dat Pro Fac Low Low Zio Dee Turns Passed 15810 | 57 400 1027 217 924 503 185 464 51 188 1955 631 744 133 557 230 1024 2390 3385 745 Spaces Moved 6282 | 35 234 588 125 585 273 98 229 45 175 949 346 357 82 305 128 395 304 724 305 Core 190 | 10 . . . 2 . . . . 12 166 . . . . . . . . . Treads 3932 | 25 234 588 125 108 . . . . . 613 346 357 82 305 128 395 258 368 . Legs 1762 | . . . . 475 273 98 86 . . 170 . . . . . . . 355 305 Wheels 165 | . . . . . . . 143 22 . . . . . . . . . . . Hover . | . . . . . . . . . . . . . . . . . . . . Flight 233 | . . . . . . . . 23 163 . . . . . . . 46 1 . Fastest Speed 32 | 50 160 160 160 120 120 190 86 32 32 100 163 160 163 162 162 243 243 133 138 Average Speed 222 | 140 160 160 160 136 181 190 150 85 78 164 163 162 163 162 162 243 770 409 191 Slowest Speed 1830 | 160 160 160 160 300 260 190 260 112 192 600 163 163 163 163 162 243 1830 1830 210 Overloaded Moves . | . . . . . . . . . . . . . . . . . . . . Propulsion Burnouts . | . . . . . . . . . . . . . . . . . . . . Robots Hopped . | . . . . . . . . . . . . . . . . . . . . Cave-ins Triggered . | . . . . . . . . . . . . . . . . . . . . Exploration Rate (%) 50 | 4 54 94 16 94 61 32 31 3 99 30 61 60 71 56 4 62 56 65 51 Regions Visited 19 Branch Regions 12 Pre-discovered Areas 1 | . . . . . . . . . . . . . 1 . . . . . . Known Exits Taken 11 | . 1 . . . . 1 1 . . 1 1 1 1 1 1 1 1 . . Unknown Exits Taken 6 | 1 . 1 1 1 1 . . . . . . . . . . . . 1 . Scrap Searched 14 | . . 1 . 2 . . . . . . 2 3 . 2 . 2 1 1 . Spaces Dug 67 | . . . . . . . 5 . . 51 . . . 7 . . . . 4 Terrain Destroyed 497 | . 15 94 . 9 . . 19 . 32 143 26 54 . 14 6 14 23 24 24 Melee 5 | . . . . . . . 5 . . . . . . . . . . . . Projectile 219 | . . . . 3 . . . . 1 51 26 54 . 14 6 14 17 24 9 AOE 273 | . 15 94 . 6 . . 14 . 31 92 . . . . . . 6 . 15 Terrain Rammed . | . . . . . . . . . . . . . . . . . . . . Walls Destroyed . | . . . . . . . . . . . . . . . . . . . . Machines Disabled . | . . . . . . . . . . . . . . . . . . . . Actions | -11 -10 -10 -9 -9 -9 -8 -8 -7 -7 -7 -7 -7 -7 -6 -6 -6 -6 -6 -6 --------- Run | Scr Mat Min Mat Min Exi Min Mat Fac Was Fac Low Low Dat Pro Fac Low Low Zio Dee Total 7446 | 40 256 651 137 661 285 97 296 62 220 1228 393 457 81 347 146 435 337 899 418 Wait 293 | . . 14 . 19 . . 14 7 36 81 32 16 . 30 . 30 2 5 7 Move 6265 | 34 233 587 124 584 272 97 229 45 174 948 345 356 81 304 127 394 303 723 305 Hop . | . . . . . . . . . . . . . . . . . . . . Pick Up 76 | . 9 7 2 1 1 . 5 . 1 14 . 3 . 1 3 . 2 11 16 Fast Attach 99 | 6 5 6 . 4 2 . 14 . 1 22 . 1 . 1 1 . 6 20 10 Attach 46 | . . . . 1 . . 3 3 2 8 . 1 . 1 2 . 1 10 14 Detach 29 | . . . . . 2 . 3 2 2 9 . . . . 1 . . 4 6 Swap 24 | . 1 . 2 2 2 . . . . 10 2 . . . 1 . 1 1 2 Drop 88 | . 5 11 3 2 6 . 3 5 2 13 . 1 . . 3 . 3 12 19 Fire 388 | . 3 26 6 48 . . 4 . 2 59 14 31 . 10 3 11 19 113 39 Melee 25 | . . . . . . . 21 . . 4 . . . . . . . . . Ram . | . . . . . . . . . . . . . . . . . . . . Kick 1 | . . . . . . . . . . 1 . . . . . . . . . Crush . | . . . . . . . . . . . . . . . . . . . . Escape Stasis . | . . . . . . . . . . . . . . . . . . . . Rewire 53 | . . . . . . . . . . . . 48 . . 5 . . . . Trap 59 | . . . . . . . . . . 59 . . . . . . . . . Miscellaneous . | . . . . . . . . . . . . . . . . . . . . Route ------- -11/Scrapyard -10/Materials (discovered 2 exits: [*Mat] / *Min) -10/Mines (discovered 2 exits: [*Mat x2]) -9/Materials (discovered 2 exits: Mat / [*Min]) -9/Mines (discovered 3 exits: *Mat x2 / *Exi) -9/Exiles -8/Mines -8/Materials (discovered 3 exits: *Fac x2 / Sto) -7/Factory -7/Waste -7/Factory -7/Lower Caves -7/Lower Caves (discovered 2 exits: *Fac / *Dat) -7/Data Miner -6/Proximity Caves -6/Factory -6/Lower Caves -6/Lower Caves -6/Zion (discovered 2 exits: [*Dee] / [*Pro]) -6/Deep Caves History --------- Turn | Location | Event 5 | -11/Scrapyard | Discovered new exit (range 15) 58 | -11/Scrapyard | Entered Materials 271 | -10/Materials | Discovered new exit (range 12) 318 | -10/Materials | Build established: Mutant 323 | -10/Materials | Identified exit to Mines 458 | -10/Materials | Entered Mines 592 | -10/Mines | Met a Derelict who couldn't figure out how to use a Trap Extractor 826 | -10/Mines | Core integrity fell below 50% 964 | -10/Mines | Learned Materials trap positions 1094 | -10/Mines | Learned location of 1 exit from Materials 1113 | -10/Mines | Met a Derelict shopkeep closing up shop 1116 | -10/Mines | Discovered new exit (range 13) 1174 | -10/Mines | Discovered new exit (range 8) 1189 | -10/Mines | Found the Drone Emporium 1196 | -10/Mines | Found Prototype Device 1196 | -10/Mines | Identified Bomb Drone Bay 1285 | -10/Mines | Assisted by bots powering up and referring to "LRC-V3" 1485 | -10/Mines | Entered Materials 1485 | -9/Materials | Accompanied by 3 allies 1485 | -9/Materials | Evolved 2 slots: Propulsion x2 1486 | -9/Materials | Identified exit to Materials 1487 | -9/Materials | Loaded intel: 15 trap records 1565 | -9/Materials | Discovered new exit (range 12) 1702 | -9/Materials | Entered Mines 1702 | -9/Mines | Accompanied by 2 allies 1957 | -9/Mines | Lost 4 parts (2n1u1w) 2068 | -9/Mines | Discovered exit to Materials (range 7) 2126 | -9/Mines | Received a Mining Laser from a helpful Derelict 2191 | -9/Mines | Received a Rocket Launcher from a helpful Derelict 2217 | -9/Mines | Learned location of 1 exit from Materials 2328 | -9/Mines | Build established: Scavenger-Mutant 2554 | -9/Mines | Discovered exit to Materials (range 13) 2620 | -9/Mines | Deemed a non-threat by the Exiles lab entrance 2621 | -9/Mines | Discovered new exit (range 5) 2626 | -9/Mines | Entered Exiles 2626 | -9/Exiles | Accompanied by 2 allies 2654 | -9/Exiles | Met 8R-AWN 2656 | -9/Exiles | Led the pair of lost Derelicts to a safe place 2690 | -9/Exiles | Met EX-HEX 2742 | -9/Exiles | Met EX-BIN 2756 | -9/Exiles | Aligned with FarCom system 2757 | -9/Exiles | Given EX-Vault access code 2785 | -9/Exiles | Opened EX-Vault 2791 | -9/Exiles | Found Prototype Energy Cannon 2791 | -9/Exiles | Identified YOLO Cannon 2799 | -9/Exiles | Found Prototype Energy Cannon 2799 | -9/Exiles | Identified Firepult 2809 | -9/Exiles | Found Prototype Processor 2859 | -9/Exiles | Warned to stay clear of 0b10 Research branches 2891 | -9/Exiles | Exiles lab attacked by MAIN.C 3087 | -9/Exiles | Build established: Mutant 3112 | -9/Exiles | Discovered new exit (range 10) 3129 | -9/Exiles | Stole three prototypes: YOLO Cannon, 0b10 Alert Chip, Firepult 3129 | -9/Exiles | Entered Mines 3302 | -8/Mines | Discovered exit to Materials (range 6) 3314 | -8/Mines | Entered Materials 3314 | -8/Materials | Evolved 2 slots: Propulsion x2 3315 | -8/Materials | Identified exit to Storage 3316 | -8/Materials | Identified exit to Factory 3695 | -8/Materials | Destroyed 8 combat bots 3723 | -8/Materials | Lost 5 parts (5n) 3762 | -8/Materials | Discovered exit to Factory (range 11) 3778 | -8/Materials | Entered Factory 3778 | -7/Factory | Evolved 2 slots: Utility x2 3780 | -7/Factory | FarCom data flow suspended 3829 | -7/Factory | Sucked down chute 3829 | -7/Factory | Entered Waste 3838 | -7/Waste | Build established: Scavenger-Mutant 3887 | -7/Waste | Spotted C-40 Crusher 3902 | -7/Waste | Spotted C-40 Crusher 3928 | -7/Waste | Spotted C-40 Crusher 3935 | -7/Waste | Spotted C-40 Crusher 3947 | -7/Waste | Spotted C-40 Crusher 3959 | -7/Waste | Spotted C-40 Crusher 3989 | -7/Waste | Discovered new exit (range 12) 3995 | -7/Waste | Destroyed C-40 Crusher 4002 | -7/Waste | Crushed by Compactor (1 part destroyed, 1 dropped) 4017 | -7/Waste | Entered Factory 4187 | -7/Factory | Build established: Mutant 4572 | -7/Factory | Cargo convoy interrupted 4600 | -7/Factory | Core integrity fell below 50% 4635 | -7/Factory | Lost 4 parts (1p1n1u1w) 4646 | -7/Factory | Destroyed 9 combat bots 4941 | -7/Factory | Build established: Scavenger-Mutant 5671 | -7/Factory | System corruption reached 10% 5938 | -7/Factory | Discovered new exit (range 5) 5956 | -7/Factory | Identified exit to Lower Caves 5972 | -7/Factory | Entered Lower Caves 6178 | -7/Lower Caves | Learned location of 1 exit from Proximity Caves 6299 | -7/Lower Caves | Spotted B-75 Beast 6420 | -7/Lower Caves | Attracted the attention of an 0b10 checkpoint 6588 | -7/Lower Caves | Discovered new exit (range 9) 6601 | -7/Lower Caves | Identified exit to Lower Caves 6603 | -7/Lower Caves | Entered another Lower Caves area 6603 | -7/Lower Caves | Spotted UV-DRK(f) 6603 | -7/Lower Caves | Spotted MN-YT1(f) 6604 | -7/Lower Caves | Encountered a Master Thief 6604 | -7/Lower Caves | Encountered a Master Thief 6604 | -7/Lower Caves | Prototype Processor stolen by Master Thief 6606 | -7/Lower Caves | Destroyed UV-DRK(f) 6677 | -7/Lower Caves | Discovered new exit (range 7) 6685 | -7/Lower Caves | Identified exit to Factory 6747 | -7/Lower Caves | Attracted the attention of an 0b10 checkpoint 6961 | -7/Lower Caves | Discovered new exit (range 5) 7008 | -7/Lower Caves | Identified exit to Data Miner 7143 | -7/Lower Caves | Attracted the attention of an 0b10 outpost 7158 | -7/Lower Caves | Core integrity fell below 20% 7347 | -7/Lower Caves | Entered Data Miner 7347 | -7/Data Miner | Discovered new exit (range 6) 7378 | -7/Data Miner | Met Data Miner 7421 | -7/Data Miner | Learned location of Section 7 (-2) 7421 | -7/Data Miner | Acquired the access code to Warlord's prototype stash 7437 | -7/Data Miner | Received God Mode back door access code from Data Miner 7478 | -7/Data Miner | Identified exit to Proximity Caves 7480 | -7/Data Miner | Entered Proximity Caves 7559 | -6/Proximity Caves | Escorted by Enhanced Grunt 8037 | -6/Proximity Caves | Entered Factory 8037 | -6/Factory | Accompanied by 1 ally 8037 | -6/Factory | Evolved 2 slots: Utility x1, Weapon x1 8240 | -6/Factory | Discovered new exit (range 14) 8259 | -6/Factory | Identified exit to Lower Caves 8267 | -6/Factory | Entered Lower Caves 8267 | -6/Lower Caves | Accompanied by 1 ally 8481 | -6/Lower Caves | Encountered a Warlord checkpoint 8494 | -6/Lower Caves | Learned 8 Factory zone layouts 8516 | -6/Lower Caves | Spotted B-75 Beast 8554 | -6/Lower Caves | Destroyed B-75 Beast 8571 | -6/Lower Caves | Build established: Scavenger-Gunner 9240 | -6/Lower Caves | Discovered new exit (range 5) 9288 | -6/Lower Caves | Identified exit to Lower Caves 9291 | -6/Lower Caves | Entered another Lower Caves area 9292 | -6/Lower Caves | Encountered a Warlord checkpoint 9439 | -6/Lower Caves | Lost 3 parts (2n1u) 9701 | -6/Lower Caves | Build established: Mutant 9792 | -6/Lower Caves | Learned 4 Factory zone layouts 10537 | -6/Lower Caves | Build established: Tank 10819 | -6/Lower Caves | Spotted B4-D1G(f) 10820 | -6/Lower Caves | Encountered a Master Thief 10820 | -6/Lower Caves | Spotted 66-303(f) 10821 | -6/Lower Caves | Encountered a Master Thief 10821 | -6/Lower Caves | Spotted 7J-4AB(f) 10821 | -6/Lower Caves | Spotted 44-94L(f) 10821 | -6/Lower Caves | Spotted VC-CTL(f) 10822 | -6/Lower Caves | Encountered a Master Thief 10822 | -6/Lower Caves | Encountered a Master Thief 10822 | -6/Lower Caves | Encountered a Master Thief 10826 | -6/Lower Caves | Exp. Field Recycling Unit stolen by Master Thief 10827 | -6/Lower Caves | Proton Burst Cannon stolen by Master Thief 10828 | -6/Lower Caves | Proton Burst Cannon stolen by Master Thief 10829 | -6/Lower Caves | Hvy. Neutron Cannon stolen by Master Thief 10837 | -6/Lower Caves | Destroyed VC-CTL(f) 10913 | -6/Lower Caves | Discovered new exit (range 15) 11143 | -6/Lower Caves | Build established: Scavenger-Mutant 11626 | -6/Lower Caves | Learned 4 Factory zone layouts 11663 | -6/Lower Caves | Identified exit to Zion 11681 | -6/Lower Caves | Entered Zion 12375 | -6/Zion | Discovered new exit (range 15) 13527 | -6/Zion | Given the Hacking Drone Bay 14026 | -6/Zion | Attacked by Zionites 14185 | -6/Zion | System corruption reached 10% 14266 | -6/Zion | Learned 4 Factory zone layouts 14357 | -6/Zion | Build established: Scavenger-Tank 14479 | -6/Zion | Destroyed Imprinter 14509 | -6/Zion | Extracted access codes from Imprinter's data core 14920 | -6/Zion | Opened final containment barrier to the Deep Caves 15060 | -6/Zion | Discovered new exit (range 5) 15062 | -6/Zion | Saw the warning signs outside the Deep Caves entrance 15066 | -6/Zion | Entered Deep Caves 15235 | -6/Deep Caves | Z-Facility disabled 15259 | -6/Deep Caves | Core integrity fell below 50% 15312 | -6/Deep Caves | Lost 5 parts (1p3n1u) 15328 | -6/Deep Caves | Found Prototype Protection 15328 | -6/Deep Caves | Identified Zio. Weapon Casing 15424 | -6/Deep Caves | Found Prototype Protection 15424 | -6/Deep Caves | Identified Zio. Heavy Carapace 15451 | -6/Deep Caves | Found Zio. Weapon Casing 15519 | -6/Deep Caves | Found Zio. Weapon Casing 15557 | -6/Deep Caves | Found Zio. Heavy Carapace 15745 | -6/Deep Caves | Exposed GOLEM chamber 15748 | -6/Deep Caves | Spotted as-28744 15803 | -6/Deep Caves | Core integrity fell below 20% 15811 | -6/Deep Caves | Destroyed by as-28744 with Assembled Focal Cannon Last Messages --------------- 15771_ Destroyed Unknown Special Melee Weapon. 15771_ Zio. Glidesys I destroyed. 15772_ System corrupted: Heat flow error (+211). 15773_ Overheating: Zio. Composite Leg I damaged (-84). 15773_ Overheating: Neutron Cannon damaged (-13). 15773_ Overheating: Imp. Heat Sink damaged (-8). 15773_ Overheating: Mak. Leg damaged (-18). 15774_ Bomb Drone destroyed. 15776_ Overheating: Exp. Heat Sink damaged (-36). 15777_ Overheating: Matter decay (-7). 15783_ as-28744 Prototype Device integration complete. 15784_ as-28744 GOLEM Unit beginning Prototype Energy Cannon integration. 15787_ Mak. Leg destroyed. 15791_ System corrupted: Heat flow error (+116). 15796_ Zio. Weapon Casing destroyed. 15797_ System corrupted: Neutron Cannon failed to cycle. 15802_ Neutron Cannon destroyed. 15805_ Mak. Leg destroyed. 15808_ ZFCA% ,S8MZ%IZ6/I